fUST/lending_fUST_20260506
["ID","MTS","AMOUNT","RATE_DAILY","PERIOD"]
[421636609,1778003443000,-941.67,0.00012328,2]
[421636601,1778003443000,-2546.95,0.00012328,2]
[421636605,1778003443000,-500.0,0.00012328,2]
[421636604,1778003443000,-500.0,0.00012328,2]
[421636608,1778003443000,-4458.21,0.00012328,2]
[421636592,1778003443000,-500.0,0.00012328,2]
[421636599,1778003443000,-10346.12,0.00012328,2]
[421636607,1778003443000,-500.0,0.00012328,2]
[421636588,1778003443000,-762.06,0.00012328,2]
[421636676,1778003443000,-500.0,0.00012328,2]
[421636682,1778003443000,-2465.3,0.00012328,2]
[421636769,1778003443000,-500.0,0.00012328,2]
[421636744,1778003443000,-1397.44,0.00012328,2]
[421636746,1778003443000,-245.79036566,0.00012328,2]
[421636758,1778003443000,-1408.92,0.00012328,2]
[421636749,1778003443000,-500.0,0.00012328,2]
[421636755,1778003443000,-500.0,0.00012328,2]
[421636751,1778003443000,-552.67654722,0.00012328,2]
[421636762,1778003443000,-500.0,0.00012328,2]
[421636753,1778003443000,-500.0,0.00012328,2]
[421636756,1778003443000,-500.0,0.00012328,2]
[421636764,1778003443000,-500.0,0.00012328,2]
[421636767,1778003443000,-4485.23,0.00012328,2]
[421636770,1778003443000,-500.0,0.00012328,2]
[421636773,1778003443000,-2427.09,0.00012328,2]
[421636742,1778003443000,-500.0,0.00012328,2]
[421636774,1778003443000,-10927.35,0.00012328,2]
[421636790,1778003443000,-2569.0426,0.00012602,2]
[421636780,1778003443000,-200.0,0.00012601,2]
[421636787,1778003443000,-500.0,0.00012602,2]
[421636776,1778003443000,-558.47,0.00012328,2]
[421636778,1778003443000,-1559.0,0.0001233,2]
[421636788,1778003443000,-2569.0426,0.00012602,2]
[421636782,1778003443000,-500.0,0.00012602,2]
[421636792,1778003443000,-500.0,0.00012602,2]
[421636796,1778003443000,-500.0,0.00012602,2]
[421636798,1778003443000,-500.0,0.00012602,2]
[421636794,1778003443000,-500.0,0.00012602,2]
[421636801,1778003443000,-500.0,0.00012602,2]
[421636686,1778003443000,-6145.49,0.00012328,2]
[421636784,1778003443000,-500.0,0.00012602,2]
[421636740,1778003443000,-4621.59,0.00012328,2]
[421636760,1778003443000,-736.69,0.00012328,2]
[421636736,1778003443000,-11891.56,0.00012328,2]
[421636684,1778003443000,-500.0,0.00012328,2]
[421636678,1778003443000,-589.50504269,0.00012328,2]
[421636680,1778003443000,-500.0,0.00012328,2]
[421636688,1778003443000,-1161.19,0.00012328,2]
[421636698,1778003443000,-4642.04,0.00012328,2]
[421636700,1778003443000,-500.0,0.00012328,2]
[421636704,1778003443000,-500.0,0.00012328,2]
[421636705,1778003443000,-500.0,0.00012328,2]
[421636738,1778003443000,-500.0,0.00012328,2]
[421636708,1778003443000,-500.0,0.00012328,2]
[421636690,1778003443000,-500.0,0.00012328,2]
[421636694,1778003443000,-500.0,0.00012328,2]
[421636709,1778003443000,-500.0,0.00012328,2]
[421636692,1778003443000,-11330.71,0.00012328,2]
[421636696,1778003443000,-500.0,0.00012328,2]
[421636702,1778003443000,-3243.06,0.00012328,2]
[421636728,1778003443000,-500.0,0.00012328,2]
[421636713,1778003443000,-994.12,0.00012328,2]
[421636715,1778003443000,-500.0,0.00012328,2]
[421636719,1778003443000,-500.0,0.00012328,2]
[421636721,1778003443000,-500.0,0.00012328,2]
[421636717,1778003443000,-741.77,0.00012328,2]
[421636725,1778003443000,-535.56,0.00012328,2]
[421636734,1778003443000,-604.73,0.00012328,2]
[421636727,1778003443000,-500.0,0.00012328,2]
[421636723,1778003443000,-500.0,0.00012328,2]
[421636730,1778003443000,-3148.82,0.00012328,2]
[421636711,1778003443000,-930.28,0.00012328,2]
[421636732,1778003443000,-500.0,0.00012328,2]
[421636890,1778003444000,-500.0,0.00012602,2]
[421636892,1778003444000,-594.63,0.00012602,2]
[421636881,1778003444000,-500.0,0.00012602,2]
[421636872,1778003444000,-500.0,0.00012602,2]
[421636896,1778003444000,-500.0,0.00012602,2]
[421636894,1778003444000,-526.57,0.00012602,2]
[421636888,1778003444000,-1797.07,0.00012602,2]
[421636885,1778003444000,-500.0,0.00012602,2]
[421636871,1778003444000,-500.0,0.00012602,2]
[421636869,1778003444000,-226.83744113,0.00012602,2]
[421636883,1778003444000,-500.0,0.00012602,2]
[421636887,1778003444000,-500.0,0.00012602,2]
[421636898,1778003444000,-500.0,0.00012602,2]
[421636874,1778003444000,-500.0,0.00012602,2]
[421636900,1778003444000,-572.21,0.00012602,2]
[421636929,1778003444000,-680.9,0.00012602,2]
[421636904,1778003444000,-500.0,0.00012602,2]
[421636912,1778003444000,-500.0,0.00012602,2]
[421636906,1778003444000,-500.0,0.00012602,2]
[421636908,1778003444000,-1000.0,0.00012602,2]
[421636910,1778003444000,-500.0,0.00012602,2]
[421636914,1778003444000,-500.0,0.00012602,2]
[421636916,1778003444000,-500.0,0.00012602,2]
[421636918,1778003444000,-500.0,0.00012602,2]
[421636921,1778003444000,-500.0,0.00012602,2]
[421636923,1778003444000,-519.47,0.00012602,2]
[421636930,1778003444000,-738.88,0.00012602,2]
[421636926,1778003444000,-500.0,0.00012602,2]
[421636925,1778003444000,-500.0,0.00012602,2]
[421636879,1778003444000,-500.0,0.00012602,2]
[421636902,1778003444000,-567.95,0.00012602,2]
[421636876,1778003444000,-500.0,0.00012602,2]
[421636812,1778003444000,-500.0,0.00012602,2]
[421636865,1778003444000,-500.0,0.00012602,2]
[421636802,1778003444000,-500.0,0.00012602,2]
[421636814,1778003444000,-500.0,0.00012602,2]
[421636806,1778003444000,-500.0,0.00012602,2]
[421636804,1778003444000,-569.87,0.00012602,2]
[421636808,1778003444000,-500.0,0.00012602,2]
[421636810,1778003444000,-500.0,0.00012602,2]
[421636828,1778003444000,-500.0,0.00012602,2]
[421636830,1778003444000,-500.0,0.00012602,2]
[421636832,1778003444000,-500.0,0.00012602,2]
[421636836,1778003444000,-500.0,0.00012602,2]
[421636834,1778003444000,-500.0,0.00012602,2]
[421636820,1778003444000,-1439.03,0.00012602,2]
[421636838,1778003444000,-500.0,0.00012602,2]
[421636823,1778003444000,-612.92,0.00012602,2]
[421636824,1778003444000,-500.0,0.00012602,2]
[421636826,1778003444000,-500.0,0.00012602,2]
[421636840,1778003444000,-653.55,0.00012602,2]
[421636844,1778003444000,-500.0,0.00012602,2]
[421636846,1778003444000,-500.0,0.00012602,2]
[421636842,1778003444000,-500.0,0.00012602,2]
[421636850,1778003444000,-628.76689764,0.00012602,2]
[421636848,1778003444000,-500.0,0.00012602,2]
[421636861,1778003444000,-500.0,0.00012602,2]
[421636852,1778003444000,-585.89,0.00012602,2]
[421636859,1778003444000,-500.0,0.00012602,2]
[421636854,1778003444000,-500.0,0.00012602,2]
[421636856,1778003444000,-500.0,0.00012602,2]
[421636857,1778003444000,-500.0,0.00012602,2]
[421636863,1778003444000,-670.24,0.00012602,2]
[421636867,1778003444000,-500.0,0.00012602,2]
[421636928,1778003444000,-500.0,0.00012602,2]
[421637026,1778003444000,-500.0,0.00012602,2]
[421636927,1778003444000,-500.0,0.00012602,2]
[421636981,1778003444000,-594.87,0.00012602,2]
[421636983,1778003444000,-500.0,0.00012602,2]
[421636985,1778003444000,-500.0,0.00012602,2]
[421636991,1778003444000,-2602.65,0.00012602,2]
[421636987,1778003444000,-500.0,0.00012602,2]
[421636992,1778003444000,-500.0,0.00012602,2]
[421636989,1778003444000,-500.0,0.00012602,2]
[421636995,1778003444000,-500.0,0.00012602,2]
[421636994,1778003444000,-500.0,0.00012602,2]
[421636996,1778003444000,-500.0,0.00012602,2]
[421636993,1778003444000,-509.59,0.00012602,2]
[421636997,1778003444000,-552.93343335,0.00012602,2]
[421636998,1778003444000,-500.0,0.00012602,2]
[421637002,1778003444000,-500.0,0.00012602,2]
[421637004,1778003444000,-500.0,0.00012602,2]
[421637000,1778003444000,-500.0,0.00012602,2]
[421637019,1778003444000,-672.24,0.00012602,2]
[421637006,1778003444000,-500.0,0.00012602,2]
[421637008,1778003444000,-2507.88,0.00012602,2]
[421637017,1778003444000,-867.51,0.00012602,2]
[421637020,1778003444000,-500.0,0.00012602,2]
[421637010,1778003444000,-501.67357069,0.00012602,2]
[421637013,1778003444000,-500.0,0.00012602,2]
[421637022,1778003444000,-2000.54,0.00012602,2]
[421637011,1778003444000,-500.0,0.00012602,2]
[421637015,1778003444000,-500.0,0.00012602,2]
[421636931,1778003444000,-500.0,0.00012602,2]
[421637030,1778003444000,-500.0,0.00012602,2]
[421637028,1778003444000,-500.0,0.00012602,2]
[421636979,1778003444000,-500.0,0.00012602,2]
[421636977,1778003444000,-1859.36,0.00012602,2]
[421637024,1778003444000,-500.0,0.00012602,2]
[421636974,1778003444000,-500.0,0.00012602,2]
[421636920,1778003444000,-418.15855167,0.00012602,2]
[421636932,1778003444000,-500.0,0.00012602,2]
[421636934,1778003444000,-500.0,0.00012602,2]
[421636933,1778003444000,-340.63472508,0.00012602,2]
[421636936,1778003444000,-500.0,0.00012602,2]
[421636938,1778003444000,-938.61,0.00012602,2]
[421636949,1778003444000,-500.0,0.00012602,2]
[421636950,1778003444000,-500.0,0.00012602,2]
[421636937,1778003444000,-1743.28,0.00012602,2]
[421636939,1778003444000,-500.0,0.00012602,2]
[421636942,1778003444000,-591.6,0.00012602,2]
[421636954,1778003444000,-500.0,0.00012602,2]
[421636952,1778003444000,-500.0,0.00012602,2]
[421636951,1778003444000,-500.0,0.00012602,2]
[421636943,1778003444000,-500.0,0.00012602,2]
[421636940,1778003444000,-500.0,0.00012602,2]
[421636966,1778003444000,-500.0,0.00012602,2]
[421636968,1778003444000,-500.0,0.00012602,2]
[421636953,1778003444000,-500.0,0.00012602,2]
[421636962,1778003444000,-581.33,0.00012602,2]
[421636964,1778003444000,-500.0,0.00012602,2]
[421636976,1778003444000,-500.0,0.00012602,2]
[421636970,1778003444000,-500.0,0.00012602,2]
[421636972,1778003444000,-782.94,0.00012602,2]
[421636956,1778003444000,-500.0,0.00012602,2]
[421636958,1778003444000,-500.0,0.00012602,2]
[421636957,1778003444000,-500.0,0.00012602,2]
[421636955,1778003444000,-500.0,0.00012602,2]
[421636947,1778003444000,-500.0,0.00012602,2]
[421636945,1778003444000,-500.0,0.00012602,2]
[421636960,1778003444000,-500.0,0.00012602,2]
[421637111,1778003445000,-500.0,0.00012602,2]
[421637109,1778003445000,-500.0,0.00012602,2]
[421637107,1778003445000,-2705.54,0.00012602,2]
[421637105,1778003445000,-500.0,0.00012602,2]
[421637095,1778003445000,-500.0,0.00012602,2]
[421637101,1778003445000,-553.0,0.00012602,2]
[421637093,1778003445000,-500.0,0.00012602,2]
[421637103,1778003445000,-500.0,0.00012602,2]
[421637091,1778003445000,-2068.26,0.00012602,2]
[421637113,1778003445000,-500.0,0.00012602,2]
[421637097,1778003445000,-500.0,0.00012602,2]
[421637099,1778003445000,-500.0,0.00012602,2]
[421637148,1778003445000,-500.0,0.00012602,2]
[421637115,1778003445000,-500.0,0.00012602,2]
[421637118,1778003445000,-253.54874768,0.00012602,2]
[421637124,1778003445000,-500.0,0.00012602,2]
[421637126,1778003445000,-500.0,0.00012602,2]
[421637122,1778003445000,-500.0,0.00012602,2]
[421637131,1778003445000,-500.0,0.00012602,2]
[421637128,1778003445000,-500.0,0.00012602,2]
[421637133,1778003445000,-613.47,0.00012602,2]
[421637130,1778003445000,-500.0,0.00012602,2]
[421637135,1778003445000,-858.87,0.00012602,2]
[421637145,1778003445000,-4257.4,0.00012602,2]
[421637146,1778003445000,-500.0,0.00012602,2]
[421637089,1778003445000,-500.0,0.00012602,2]
[421637117,1778003445000,-500.0,0.00012602,2]
[421637087,1778003445000,-500.0,0.00012602,2]
[421637056,1778003445000,-500.0,0.00012602,2]
[421637083,1778003445000,-1237.4,0.00012602,2]
[421637137,1778003445000,-500.0,0.00012602,2]
[421637035,1778003445000,-566.36,0.00012602,2]
[421637039,1778003445000,-500.0,0.00012602,2]
[421637037,1778003445000,-500.0,0.00012602,2]
[421637041,1778003445000,-500.0,0.00012602,2]
[421637032,1778003445000,-682.54,0.00012602,2]
[421637048,1778003445000,-876.05,0.00012602,2]
[421637043,1778003445000,-500.0,0.00012602,2]
[421637034,1778003445000,-500.0,0.00012602,2]
[421637045,1778003445000,-500.0,0.00012602,2]
[421637047,1778003445000,-500.0,0.00012602,2]
[421637050,1778003445000,-500.0,0.00012602,2]
[421637052,1778003445000,-500.0,0.00012602,2]
[421637054,1778003445000,-500.0,0.00012602,2]
[421637072,1778003445000,-1038.46,0.00012602,2]
[421637058,1778003445000,-500.0,0.00012602,2]
[421637060,1778003445000,-1445.54,0.00012602,2]
[421637066,1778003445000,-500.0,0.00012602,2]
[421637068,1778003445000,-500.0,0.00012602,2]
[421637062,1778003445000,-500.0,0.00012602,2]
[421637073,1778003445000,-500.0,0.00012602,2]
[421637064,1778003445000,-500.0,0.00012602,2]
[421637070,1778003445000,-500.0,0.00012602,2]
[421637075,1778003445000,-500.0,0.00012602,2]
[421637077,1778003445000,-580.34035385,0.00012602,2]
[421637079,1778003445000,-500.0,0.00012602,2]
[421637081,1778003445000,-500.0,0.00012602,2]
[421637085,1778003445000,-500.0,0.00012602,2]
[421637139,1778003445000,-500.0,0.00012602,2]
[421637120,1778003445000,-500.0,0.00012602,2]
[421637141,1778003445000,-7415.098496,0.00012602,2]
[421637218,1778003445000,-500.0,0.00012602,2]
[421637208,1778003445000,-500.0,0.00012602,2]
[421637222,1778003445000,-500.0,0.00012602,2]
[421637224,1778003445000,-500.0,0.00012602,2]
[421637234,1778003445000,-500.0,0.00012602,2]
[421637230,1778003445000,-609.53620225,0.00012602,2]
[421637232,1778003445000,-500.0,0.00012602,2]
[421637226,1778003445000,-1018.33,0.00012602,2]
[421637240,1778003445000,-500.0,0.00012602,2]
[421637238,1778003445000,-500.0,0.00012602,2]
[421637236,1778003445000,-500.0,0.00012602,2]
[421637228,1778003445000,-687.51,0.00012602,2]
[421637247,1778003445000,-1492.19,0.00012602,2]
[421637243,1778003445000,-552.86,0.00012602,2]
[421637251,1778003445000,-500.0,0.00012602,2]
[421637253,1778003445000,-500.0,0.00012602,2]
[421637260,1778003445000,-1791.35,0.00012602,2]
[421637257,1778003445000,-500.0,0.00012602,2]
[421637254,1778003445000,-500.0,0.00012602,2]
[421637263,1778003445000,-893.4,0.00012602,2]
[421637249,1778003445000,-500.0,0.00012602,2]
[421637261,1778003445000,-500.0,0.00012602,2]
[421637258,1778003445000,-500.0,0.00012602,2]
[421637256,1778003445000,-500.0,0.00012602,2]
[421637259,1778003445000,-500.0,0.00012602,2]
[421637264,1778003445000,-1328.28,0.00012602,2]
[421637143,1778003445000,-1188.18,0.00012602,2]
[421637210,1778003445000,-2123.89,0.00012602,2]
[421637206,1778003445000,-4054.53,0.00012602,2]
[421637245,1778003445000,-500.0,0.00012602,2]
[421637205,1778003445000,-1246.96,0.00012602,2]
[421637220,1778003445000,-531.50118329,0.00012602,2]
[421637152,1778003445000,-500.0,0.00012602,2]
[421637154,1778003445000,-500.0,0.00012602,2]
[421637150,1778003445000,-500.0,0.00012602,2]
[421637158,1778003445000,-500.0,0.00012602,2]
[421637156,1778003445000,-500.0,0.00012602,2]
[421637160,1778003445000,-500.0,0.00012602,2]
[421637162,1778003445000,-500.0,0.00012602,2]
[421637168,1778003445000,-684.412688,0.00012602,2]
[421637166,1778003445000,-500.0,0.00012602,2]
[421637170,1778003445000,-500.0,0.00012602,2]
[421637177,1778003445000,-500.0,0.00012602,2]
[421637179,1778003445000,-783.566813,0.00012602,2]
[421637265,1778003445000,-500.0,0.00012602,2]
[421637164,1778003445000,-500.0,0.00012602,2]
[421637215,1778003445000,-500.0,0.00012602,2]
[421637172,1778003445000,-500.0,0.00012602,2]
[421637216,1778003445000,-500.0,0.00012602,2]
[421637203,1778003445000,-11374.29885,0.00012602,2]
[421637214,1778003445000,-1856.52,0.00012602,2]
[421637201,1778003445000,-587.16,0.00012602,2]
[421637196,1778003445000,-785.91,0.00012602,2]
[421637212,1778003445000,-500.0,0.00012602,2]
[421637194,1778003445000,-433.17612977,0.00012602,2]
[421637173,1778003445000,-792.79,0.00012602,2]
[421637181,1778003445000,-601.77,0.00012602,2]
[421637175,1778003445000,-500.0,0.00012602,2]
[421637199,1778003445000,-500.0,0.00012602,2]
[421637353,1778003446000,-500.0,0.00012602,2]
[421637333,1778003446000,-500.0,0.00012602,2]
[421637339,1778003446000,-500.0,0.00012602,2]
[421637337,1778003446000,-500.0,0.00012602,2]
[421637335,1778003446000,-500.0,0.00012602,2]
[421637331,1778003446000,-500.0,0.00012602,2]
[421637317,1778003446000,-500.0,0.00012602,2]
[421637322,1778003446000,-500.0,0.00012602,2]
[421637320,1778003446000,-500.0,0.00012602,2]
[421637315,1778003446000,-755.82,0.00012602,2]
[421637318,1778003446000,-709.57,0.00012602,2]
[421637341,1778003446000,-500.0,0.00012602,2]
[421637330,1778003446000,-817.42,0.00012602,2]
[421637343,1778003446000,-4241.83,0.00012602,2]
[421637375,1778003446000,-500.0,0.00012602,2]
[421637345,1778003446000,-500.0,0.00012602,2]
[421637350,1778003446000,-500.0,0.00012602,2]
[421637348,1778003446000,-607.05172667,0.00012602,2]
[421637355,1778003446000,-162.18356825,0.00012602,2]
[421637359,1778003446000,-500.0,0.00012602,2]
[421637357,1778003446000,-500.0,0.00012602,2]
[421637363,1778003446000,-500.0,0.00012602,2]
[421637361,1778003446000,-1158.39,0.00012602,2]
[421637365,1778003446000,-611.81,0.00012602,2]
[421637371,1778003446000,-500.0,0.00012602,2]
[421637377,1778003446000,-500.0,0.00012602,2]
[421637373,1778003446000,-1467.3,0.00012602,2]
[421637325,1778003446000,-500.0,0.00012602,2]
[421637346,1778003446000,-500.0,0.00012602,2]
[421637324,1778003446000,-500.0,0.00012602,2]
[421637269,1778003446000,-500.0,0.00012602,2]
[421637328,1778003446000,-500.0,0.00012602,2]
[421637266,1778003446000,-555.12,0.00012602,2]
[421637369,1778003446000,-500.0,0.00012602,2]
[421637268,1778003446000,-617.28442861,0.00012602,2]
[421637267,1778003446000,-500.0,0.00012602,2]
[421637270,1778003446000,-2421.53,0.00012602,2]
[421637271,1778003446000,-500.0,0.00012602,2]
[421637278,1778003446000,-500.0,0.00012602,2]
[421637276,1778003446000,-4016.4,0.00012602,2]
[421637274,1778003446000,-500.0,0.00012602,2]
[421637272,1778003446000,-500.0,0.00012602,2]
[421637284,1778003446000,-500.0,0.00012602,2]
[421637280,1778003446000,-500.0,0.00012602,2]
[421637282,1778003446000,-500.0,0.00012602,2]
[421637287,1778003446000,-629.59,0.00012602,2]
[421637297,1778003446000,-500.0,0.00012602,2]
[421637299,1778003446000,-500.0,0.00012602,2]
[421637289,1778003446000,-500.0,0.00012602,2]
[421637290,1778003446000,-500.0,0.00012602,2]
[421637301,1778003446000,-500.0,0.00012602,2]
[421637303,1778003446000,-589.69,0.00012602,2]
[421637305,1778003446000,-500.0,0.00012602,2]
[421637311,1778003446000,-500.0,0.00012602,2]
[421637307,1778003446000,-500.0,0.00012602,2]
[421637295,1778003446000,-500.0,0.00012602,2]
[421637293,1778003446000,-500.0,0.00012602,2]
[421637309,1778003446000,-500.0,0.00012602,2]
[421637313,1778003446000,-500.0,0.00012602,2]
[421637323,1778003446000,-500.0,0.00012602,2]
[421637326,1778003446000,-500.0,0.00012602,2]
[421637327,1778003446000,-197.87103463,0.00012602,2]
[421637367,1778003446000,-500.0,0.00012602,2]
[421637399,1778003446000,-500.0,0.00012602,2]
[421637383,1778003446000,-500.0,0.00012602,2]
[421637447,1778003446000,-856.15,0.00012602,2]
[421637451,1778003446000,-500.0,0.00012602,2]
[421637454,1778003446000,-500.0,0.00012602,2]
[421637453,1778003446000,-500.0,0.00012602,2]
[421637456,1778003446000,-500.0,0.00012602,2]
[421637458,1778003446000,-500.0,0.00012602,2]
[421637460,1778003446000,-500.0,0.00012602,2]
[421637463,1778003446000,-500.0,0.00012602,2]
[421637465,1778003446000,-500.0,0.00012602,2]
[421637476,1778003446000,-500.0,0.00012602,2]
[421637469,1778003446000,-500.0,0.00012602,2]
[421637474,1778003446000,-500.0,0.00012602,2]
[421637478,1778003446000,-500.0,0.00012602,2]
[421637472,1778003446000,-500.0,0.00012602,2]
[421637471,1778003446000,-500.0,0.00012602,2]
[421637381,1778003446000,-500.0,0.00012602,2]
[421637467,1778003446000,-500.0,0.00012602,2]
[421637482,1778003446000,-500.0,0.00012602,2]
[421637484,1778003446000,-1376.41,0.00012602,2]
[421637486,1778003446000,-500.0,0.00012602,2]
[421637488,1778003446000,-500.0,0.00012602,2]
[421637492,1778003446000,-500.0,0.00012602,2]
[421637494,1778003446000,-500.0,0.00012602,2]
[421637497,1778003446000,-500.0,0.00012602,2]
[421637490,1778003446000,-500.0,0.00012602,2]
[421637501,1778003446000,-3274.96,0.00012602,2]
[421637499,1778003446000,-164.33580136,0.00012602,2]
[421637503,1778003446000,-4237.44,0.00012602,2]
[421637505,1778003446000,-500.0,0.00012602,2]
[421637437,1778003446000,-500.0,0.00012602,2]
[421637435,1778003446000,-500.0,0.00012602,2]
[421637480,1778003446000,-500.0,0.00012602,2]
[421637449,1778003446000,-500.0,0.00012602,2]
[421637443,1778003446000,-500.0,0.00012602,2]
[421637393,1778003446000,-500.0,0.00012602,2]
[421637391,1778003446000,-500.0,0.00012602,2]
[421637389,1778003446000,-593.98,0.00012602,2]
[421637385,1778003446000,-571.96,0.00012602,2]
[421637379,1778003446000,-606.97422162,0.00012602,2]
[421637395,1778003446000,-500.0,0.00012602,2]
[421637402,1778003446000,-500.0,0.00012602,2]
[421637406,1778003446000,-500.0,0.00012602,2]
[421637408,1778003446000,-500.0,0.00012602,2]
[421637409,1778003446000,-10797.99,0.00012602,2]
[421637413,1778003446000,-548.92,0.00012602,2]
[421637411,1778003446000,-500.0,0.00012602,2]
[421637397,1778003446000,-1693.16,0.00012602,2]
[421637417,1778003446000,-500.0,0.00012602,2]
[421637441,1778003446000,-500.0,0.00012602,2]
[421637415,1778003446000,-500.0,0.00012602,2]
[421637445,1778003446000,-500.0,0.00012602,2]
[421637439,1778003446000,-500.0,0.00012602,2]
[421637433,1778003446000,-500.0,0.00012602,2]
[421637431,1778003446000,-500.0,0.00012602,2]
[421637429,1778003446000,-2561.92,0.00012602,2]
[421637387,1778003446000,-992.61,0.00012602,2]
[421637427,1778003446000,-500.0,0.00012602,2]
[421637425,1778003446000,-500.0,0.00012602,2]
[421637423,1778003446000,-500.0,0.00012602,2]
[421637419,1778003446000,-500.0,0.00012602,2]
[421637421,1778003446000,-519.19,0.00012602,2]
[421637404,1778003446000,-500.0,0.00012602,2]
[421637542,1778003447000,-3348.2,0.00012602,2]
[421637538,1778003447000,-500.0,0.00012602,2]
[421637536,1778003447000,-500.0,0.00012602,2]
[421637540,1778003447000,-500.0,0.00012602,2]
[421637544,1778003447000,-335.95806445,0.00012602,2]
[421637601,1778003447000,-2649.23691876,0.00012602,2]
[421637604,1778003447000,-500.0,0.00012602,2]
[421637613,1778003447000,-500.0,0.00012602,2]
[421637609,1778003447000,-500.0,0.00012602,2]
[421637534,1778003447000,-1768.37,0.00012602,2]
[421637615,1778003447000,-500.0,0.00012602,2]
[421637611,1778003447000,-500.0,0.00012602,2]
[421637619,1778003447000,-500.0,0.00012602,2]
[421637620,1778003447000,-6852.98,0.00012602,2]
[421637622,1778003447000,-500.0,0.00012602,2]
[421637607,1778003447000,-500.0,0.00012602,2]
[421637617,1778003447000,-1106.49,0.00012602,2]
[421637522,1778003447000,-5306.68,0.00012602,2]
[421637547,1778003447000,-500.0,0.00012602,2]
[421637621,1778003447000,-937.22,0.00012602,2]
[421637507,1778003447000,-500.0,0.00012602,2]
[421637509,1778003447000,-500.0,0.00012602,2]
[421637511,1778003447000,-500.0,0.00012602,2]
[421637527,1778003447000,-500.0,0.00012602,2]
[421637526,1778003447000,-500.0,0.00012602,2]
[421637524,1778003447000,-12053.66,0.00012602,2]
[421637549,1778003447000,-7728.35308124,0.00012602,2]
[421637513,1778003447000,-500.0,0.00012602,2]
[421637516,1778003447000,-2566.36,0.00012602,2]
[421637520,1778003447000,-714.8637,0.00012602,2]
[421637518,1778003447000,-500.0,0.00012602,2]
[421637515,1778003447000,-500.0,0.00012602,2]
[421637531,1778003447000,-500.0,0.00012602,2]
[421637533,1778003447000,-500.0,0.00012602,2]
[421637546,1778003447000,-3434.49,0.00012602,2]
[421637529,1778003447000,-500.0,0.00012602,2]
[421637623,1778003447000,-500.0,0.00012602,2]
[421637669,1778003447000,-1218.72,0.00012602,2]
[421637625,1778003447000,-500.0,0.00012602,2]
[421637684,1778003447000,-500.0,0.00012602,2]
[421637674,1778003447000,-500.0,0.00012602,2]
[421637676,1778003447000,-500.0,0.00012602,2]
[421637679,1778003447000,-500.0,0.00012602,2]
[421637681,1778003447000,-1145.59,0.00012602,2]
[421637687,1778003447000,-1123.84,0.00012602,2]
[421637689,1778003447000,-500.0,0.00012602,2]
[421637671,1778003447000,-500.0,0.00012602,2]
[421637694,1778003447000,-887.09,0.00012602,2]
[421637701,1778003447000,-3514.3,0.00012602,2]